﻿Department Family,Entity,Date of Payment,GL Description,Expense Area,Supplier,Voluntary & Community Sector,SME Class,Sole Trader,Transaction number,Purchasing Item Text,Postal Code,Amount in Sterling,Grant?
"Housing, Communities & Local Government",PINS,01/07/2020,Agency Staff,Communications,HAYS SPECIALIST RECRUITMENT LTD,,Large,,5106261614,Change Port Comms Lead ,NW1 2AF,"2,088.00",
"Housing, Communities & Local Government",PINS,01/07/2020,Training,Communications,Tom Dalgarno,,Micro,,5106261571,Video Production Services 20/21,BS5 7DG,"1,350.00",
"Housing, Communities & Local Government",PINS,01/07/2020,Payroll Services,Human Resources,CGI IT UK LIMITED,,Large,,5106261616,Payroll service 2020/21,CF31 9AP,"3,877.64",
"Housing, Communities & Local Government",PINS,01/07/2020,Training,Human Resources,INVOLVE SOLUTIONS LIMITED,,Micro,,5106261599,Coaching - CST,GL66LY,"6,500.00",
"Housing, Communities & Local Government",PINS,01/07/2020,Agency Staff,Research and Development,REED SPECIALIST RECRUITMENT LTD,,Large,,5106261583,EO ODT Project Support,SW20 0BA,906.07,
"Housing, Communities & Local Government",PINS,01/07/2020,Specialist Technical Support,Vitual Events,HAYS SPECIALIST RECRUITMENT LTD,,Large,,5106261615,Solution Architect and Tech Support,NW1 2AF,"3,121.86",
"Housing, Communities & Local Government",PINS,02/07/2020,Specialist Technical Support,Data Governance,HAYS SPECIALIST RECRUITMENT LTD,,Large,,5106261655,DPLO,NW1 2AF,"3,580.50",
"Housing, Communities & Local Government",PINS,02/07/2020,Specialist Technical Support,Data Governance,HAYS SPECIALIST RECRUITMENT LTD,,Large,,5106261656,DPLO,NW1 2AF,"3,580.50",
"Housing, Communities & Local Government",PINS,02/07/2020,Courier Services,Estates,PARCELFORCE WORLDWIDE,,Large,,5106261675,Courier services ,MK7 8LE,375.98,
"Housing, Communities & Local Government",PINS,02/07/2020,Office machinery consumables,"Finance, Commercial & Business Support",X M A LIMITED,,Data Not Provided,,5106261672,IT Consumables 2020/2021,NG11 7EP,"1,089.60",
"Housing, Communities & Local Government",PINS,02/07/2020,EXP – PURCHASE OF GOODS /SERVICES R & D,Research and Development,CAPITA RESOURCING LTD,,Large,,5106261680,Content resource ,SL6 1DP,"3,376.99",
"Housing, Communities & Local Government",PINS,03/07/2020,Specialist Technical Support,Corporate Services Director,HAYS SPECIALIST RECRUITMENT LTD,,Large,,2100084232,Data Protection Liaison Officer,NW1 2AF,"-1,432.20",
"Housing, Communities & Local Government",PINS,03/07/2020,Specialist Technical Support,Corporate Services Director,HAYS SPECIALIST RECRUITMENT LTD,,Large,,5106261716,Data Protection Liaison Officer,NW1 2AF,"1,432.20",
"Housing, Communities & Local Government",PINS,03/07/2020,Specialist Technical Support,Data and Performance,HAYS SPECIALIST RECRUITMENT LTD,,Large,,5106261709,GDPR Trainer,NW1 2AF,"2,832.00",
"Housing, Communities & Local Government",PINS,03/07/2020,Specialist Technical Support,Digital Services,HAYS SPECIALIST RECRUITMENT LTD,,Large,,5106261721,PHP Developer,NW1 2AF,"3,121.86",
"Housing, Communities & Local Government",PINS,03/07/2020,Specialist Technical Support,Digital Services,METHODS BUSINESS AND DIGITAL TECH,,Medium,,2100084233,Project support officer for Corporate Sy,EC1N 8TS,"-8,218.32",
"Housing, Communities & Local Government",PINS,03/07/2020,Specialist Technical Support,Digital Services,METHODS BUSINESS AND DIGITAL TECH,,Medium,,5106261714,Project support officer for Corporate Sy,EC1N 8TS,"8,218.32",
"Housing, Communities & Local Government",PINS,03/07/2020,Specialist Technical Support,Digital Services,SOLOS CONSULTANTS LTD,,Large,,5106261685,Lead developer,NG16 1LA,"3,269.58",
"Housing, Communities & Local Government",PINS,03/07/2020,IT - Service Contracts,Digital Services,ZSAH LTD,,Small,,5106261692,Environment hosting ,SW7 3HE,"2,265.17",
"Housing, Communities & Local Government",PINS,03/07/2020,IT - Service Contracts,Digital Services,ZSAH LTD,,Small,,5106261693,Environment hosting ,SW7 3HE,"2,265.17",
"Housing, Communities & Local Government",PINS,03/07/2020,IT - Service Contracts,Digital Services,ZSAH LTD,,Small,,5106261694,Environment hosting ,SW7 3HE,"2,265.17",
"Housing, Communities & Local Government",PINS,03/07/2020,IT - Service Contracts,Digital Services,ZSAH LTD,,Small,,5106261695,Environment hosting ,SW7 3HE,"2,265.17",
"Housing, Communities & Local Government",PINS,03/07/2020,Specialist Technical Support,Heathrow,SOLOS CONSULTANTS LTD,,Large,,5106261684,Excel Expert forcasting ,NG16 1LA,"1,361.28",
"Housing, Communities & Local Government",PINS,03/07/2020,Agency Staff,Human Resources,HAYS SPECIALIST RECRUITMENT LTD,,Large,,5106261705,Admin OD/HR Support ,NW1 2AF,"1,196.34",
"Housing, Communities & Local Government",PINS,03/07/2020,Agency Staff,LKD Director of Volume Casework,REED SPECIALIST RECRUITMENT LTD,,Large,,5106261681,Validation Officer,SW20 0BA,614.40,
"Housing, Communities & Local Government",PINS,03/07/2020,Agency Staff,LKD Inspector Development & Support Team,REED SPECIALIST RECRUITMENT LTD,,Large,,5106261582,Temp staff for IDST,SW20 0BA,623.78,
"Housing, Communities & Local Government",PINS,03/07/2020,Specialist Technical Support,MIPINS,METHODS BUSINESS AND DIGITAL TECH,,Medium,,5106261720,Power BI Developer ,EC1N 8TS,"13,960.32",
"Housing, Communities & Local Government",PINS,03/07/2020,EXP – PURCHASE OF GOODS /SERVICES R & D,ODT Resourcing,HAYS SPECIALIST RECRUITMENT LTD,,Large,,5106261711,ODT Test Analyst,NW1 2AF,"1,457.10",
"Housing, Communities & Local Government",PINS,03/07/2020,EXP – PURCHASE OF GOODS /SERVICES R & D,Research and Development,HAYS SPECIALIST RECRUITMENT LTD,,Large,,5106261702,ODT Test Analyst,NW1 2AF,"2,095.70",
"Housing, Communities & Local Government",PINS,03/07/2020,EXP – PURCHASE OF GOODS /SERVICES R & D,Research and Development,HAYS SPECIALIST RECRUITMENT LTD,,Large,,5106261703,ODT ID ,NW1 2AF,"2,851.55",
"Housing, Communities & Local Government",PINS,03/07/2020,EXP – PURCHASE OF GOODS /SERVICES R & D,Research and Development,HAYS SPECIALIST RECRUITMENT LTD,,Large,,5106261717,ODT User Researcher,NW1 2AF,"2,851.55",
"Housing, Communities & Local Government",PINS,03/07/2020,EXP – PURCHASE OF GOODS /SERVICES R & D,Research and Development,HAYS SPECIALIST RECRUITMENT LTD,,Large,,5106261722,ODT Content Designer,NW1 2AF,"1,242.54",
"Housing, Communities & Local Government",PINS,03/07/2020,EXP – PURCHASE OF GOODS /SERVICES R & D,Research and Development,HAYS SPECIALIST RECRUITMENT LTD,,Large,,5106261729,ODT BA,NW1 2AF,"2,086.80",
"Housing, Communities & Local Government",PINS,03/07/2020,Specialist Technical Support,Vitual Events,HAYS SPECIALIST RECRUITMENT LTD,,Large,,5106261727,BA Digital Hearings ,NW1 2AF,"3,421.86",
"Housing, Communities & Local Government",PINS,06/07/2020,Specialist Technical Support,Corporate Services Director,METHODS BUSINESS AND DIGITAL TECH,,Medium,,5106261715,Test Analyst ,EC1N 8TS,"10,333.22",
"Housing, Communities & Local Government",PINS,06/07/2020,Specialist Technical Support,Corporate Services Director,METHODS BUSINESS AND DIGITAL TECH,,Medium,,5106261790,Contract ext to 30/06/20,EC1N 8TS,"15,074.40",
"Housing, Communities & Local Government",PINS,06/07/2020,Specialist Technical Support,Data Governance,HAYS SPECIALIST RECRUITMENT LTD,,Large,,5106261718,Senior Records Manager,NW1 2AF,"3,132.00",
"Housing, Communities & Local Government",PINS,06/07/2020,Specialist Technical Support,Digital Services,CAPITA RESOURCING LTD,,Large,,5106261787,Services of an 0365 SME ,SL6 1DP,"7,957.98",
"Housing, Communities & Local Government",PINS,06/07/2020,Specialist Technical Support,Digital Services,MEDLEY BUSINESS SOLUTIONS LIMITED,,Medium,,5106261700,Digital Architect ,GU4 8PR,"19,958.40",
"Housing, Communities & Local Government",PINS,06/07/2020,IT - Software Maintenance,Digital Services,SOFTWARE BOX LTD,,Large,,5106261699,Maintenance for Opentext licenses as per,YO61 1ET,"14,721.60",
"Housing, Communities & Local Government",PINS,06/07/2020,Specialist Technical Support,"Finance, Commercial & Business Support",HAYS SPECIALIST RECRUITMENT LTD,,Large,,5106261706,Commercial Manager,NW1 2AF,977.33,
"Housing, Communities & Local Government",PINS,06/07/2020,Agency Staff,"Finance, Commercial & Business Support",VENN GROUP,,Large,,5106261691,Finance Resource,SE1 2QP,"1,526.64",
"Housing, Communities & Local Government",PINS,06/07/2020,EXP – PURCHASE OF GOODS /SERVICES R & D,Research and Development,CAPITA RESOURCING LTD,,Large,,5106261781,ODT Test Analyst,SL6 1DP,"1,585.52",
"Housing, Communities & Local Government",PINS,06/07/2020,EXP – PURCHASE OF GOODS /SERVICES R & D,Research and Development,CAPITA RESOURCING LTD,,Large,,5106261783,ODT Test Analyst,SL6 1DP,"5,945.70",
"Housing, Communities & Local Government",PINS,06/07/2020,EXP – PURCHASE OF GOODS /SERVICES R & D,Research and Development,HAYS SPECIALIST RECRUITMENT LTD,,Large,,5106261701,ODT Test Analyst,NW1 2AF,"2,260.75",
"Housing, Communities & Local Government",PINS,06/07/2020,Specialist Technical Support,Vitual Events,SOLOS CONSULTANTS LTD,,Large,,2100084254,O365 tech specialist - Digital events -,NG16 1LA,"-1,170.82",
"Housing, Communities & Local Government",PINS,06/07/2020,Specialist Technical Support,Vitual Events,SOLOS CONSULTANTS LTD,,Large,,5106261686,O365 tech specialist - Digital events -,NG16 1LA,"1,170.82",
"Housing, Communities & Local Government",PINS,07/07/2020,Specialist Technical Support,Corporate Services Director,METHODS BUSINESS AND DIGITAL TECH,,Medium,,5106261813,Contract ext to 31/08/20,EC1N 8TS,"8,218.32",
"Housing, Communities & Local Government",PINS,07/07/2020,Specialist Technical Support,Data Governance,HAYS SPECIALIST RECRUITMENT LTD,,Large,,5106261810,DPLO ,NW1 2AF,"1,432.20",
"Housing, Communities & Local Government",PINS,07/07/2020,Web Services,Digital Services,MEMSET LIMITED,,Small,,5106261507,Hosting of mini-servers FY 2020-21,GU6 8TB,-579.38,
"Housing, Communities & Local Government",PINS,07/07/2020,Agency Staff,"Finance, Commercial & Business Support",REED SPECIALIST RECRUITMENT LTD,,Large,,5106261827,AA Storekeeper,SW20 0BA,549.23,
"Housing, Communities & Local Government",PINS,07/07/2020,Specialist Technical Support,Human Resources,KORN FERRY (UK) LTD,,Large,,5106261858,Pay and Reward,SW1Y 6QB,"22,980.00",
"Housing, Communities & Local Government",PINS,07/07/2020,Agency Staff,Human Resources,REED SPECIALIST RECRUITMENT LTD,,Large,,5106261806,AO HR,SW20 0BA,674.56,
"Housing, Communities & Local Government",PINS,07/07/2020,Travel and Subsistence Account,Inspector Costs,CORPORATE TRAVEL MANAGEMENT(NORTH)L,,Small,,5106261826,Rail,BD1 5HQ,788.80,
"Housing, Communities & Local Government",PINS,07/07/2020,Travel and Subsistence Account,Inspector Costs,CORPORATE TRAVEL MANAGEMENT(NORTH)L,,Small,,5106261826,Hotels,BD1 5HQ,"1,981.14",
"Housing, Communities & Local Government",PINS,07/07/2020,Agency Staff,Knowledge & Horizon Scanning,REED SPECIALIST RECRUITMENT LTD,,Large,,5106261825,Agency Staff for Library ,SW20 0BA,555.70,
"Housing, Communities & Local Government",PINS,07/07/2020,Agency Staff,LKD Inspector Development & Support Team,REED SPECIALIST RECRUITMENT LTD,,Large,,5106261798,Temp staff for IDST,SW20 0BA,647.47,
"Housing, Communities & Local Government",PINS,07/07/2020,Training,LKD TR People,KORN FERRY (UK) LTD,,Large,,5106261856,ET & GRd 6 dev & coaching ,SW1Y 6QB,"-19,150.00",
"Housing, Communities & Local Government",PINS,07/07/2020,Agency Staff,LKD Transformation Prog Management Offic,REED SPECIALIST RECRUITMENT LTD,,Large,,5106261580,Finance Business Partner,SW20 0BA,"1,424.82",
"Housing, Communities & Local Government",PINS,07/07/2020,Specialist Technical Support,MIPINS,HAYS SPECIALIST RECRUITMENT LTD,,Large,,5106261708,BI Developer,NW1 2AF,"2,830.32",
"Housing, Communities & Local Government",PINS,07/07/2020,Specialist Technical Support,MIPINS,METHODS BUSINESS AND DIGITAL TECH,,Medium,,5106261820,MiPINS Resource,EC1N 8TS,"17,776.44",
"Housing, Communities & Local Government",PINS,07/07/2020,Agency Staff,Professional Leads,REED SPECIALIST RECRUITMENT LTD,,Large,,5106261199,PA Resource ,SW20 0BA,668.16,
"Housing, Communities & Local Government",PINS,07/07/2020,Agency Staff,Professional Leads,REED SPECIALIST RECRUITMENT LTD,,Large,,5106261367,PA Resource ,SW20 0BA,757.25,
"Housing, Communities & Local Government",PINS,07/07/2020,Agency Staff,Professional Leads,REED SPECIALIST RECRUITMENT LTD,,Large,,5106261584,PA Resource,SW20 0BA,835.20,
"Housing, Communities & Local Government",PINS,07/07/2020,Agency Staff,Professional Leads,REED SPECIALIST RECRUITMENT LTD,,Large,,5106261796,PA Resource ,SW20 0BA,835.20,
"Housing, Communities & Local Government",PINS,07/07/2020,EXP – PURCHASE OF GOODS /SERVICES R & D,Research and Development,@ITS(SEARCH&SELECTION)LTD,,Small,,5106261832,ODT BA,EC2V 6DL,"12,180.00",
"Housing, Communities & Local Government",PINS,07/07/2020,Agency Staff,Research and Development,REED SPECIALIST RECRUITMENT LTD,,Large,,5106261818,ODT Project Support,SW20 0BA,539.64,
"Housing, Communities & Local Government",PINS,07/07/2020,EXP – PURCHASE OF GOODS /SERVICES R & D,Research and Development,REED SPECIALIST RECRUITMENT LTD,,Large,,5106261586,ODT Project Support,SW20 0BA,565.87,
"Housing, Communities & Local Government",PINS,07/07/2020,EXP – PURCHASE OF GOODS /SERVICES R & D,Research and Development,TALENT INTERNATIONAL PTY LTD,,Medium,,5106261774,ODT User Researcher,B3 2ES,"10,675.00",
"Housing, Communities & Local Government",PINS,07/07/2020,Specialist Technical Support,Welsh Separation,METHODS BUSINESS AND DIGITAL TECH,,Medium,,5106261816,Welsh Scoping Lead,EC1N 8TS,"13,680.00",
"Housing, Communities & Local Government",PINS,08/07/2020,Specialist Technical Support,Corporate Services Director,METHODS BUSINESS AND DIGITAL TECH,,Medium,,5106261852,Corporate Systems Del Mngr,EC1N 8TS,"18,130.20",
"Housing, Communities & Local Government",PINS,08/07/2020,Specialist Technical Support,Data and Performance,HAYS SPECIALIST RECRUITMENT LTD,,Large,,5106261841,MiPINS Resource,NW1 2AF,"3,421.86",
"Housing, Communities & Local Government",PINS,08/07/2020,Agency Staff,"Finance, Commercial & Business Support",REED SPECIALIST RECRUITMENT LTD,,Large,,5106261807,Finance Business Partner,SW20 0BA,"1,385.78",
"Housing, Communities & Local Government",PINS,08/07/2020,Office machinery consumables,"Finance, Commercial & Business Support",X M A LIMITED,,Data Not Provided,,5106261860,IT Consumables 2020/2021,NG11 7EP,528.96,
"Housing, Communities & Local Government",PINS,08/07/2020,Vehicle hire,Inspector Costs,ENTERPRISE RENT A CAR(USE 445276),,Large,,5106261861,Vehicle Hire,SO23 0LD,"7,130.11",
"Housing, Communities & Local Government",PINS,08/07/2020,Specialist Technical Support,MIPINS,METHODS BUSINESS AND DIGITAL TECH,,Medium,,5106261855,Change Portfolio,EC1N 8TS,"17,116.44",
"Housing, Communities & Local Government",PINS,08/07/2020,EXP – PURCHASE OF GOODS /SERVICES R & D,Research and Development,METHODS BUSINESS AND DIGITAL TECH,,Medium,,5106261780,DDM ,EC1N 8TS,"14,850.00",
"Housing, Communities & Local Government",PINS,08/07/2020,Agency Staff,Research and Development,REED SPECIALIST RECRUITMENT LTD,,Large,,5106261800,EO ODT Project Support,SW20 0BA,668.30,
"Housing, Communities & Local Government",PINS,08/07/2020,Specialist Technical Support,Vitual Events,SOLOS CONSULTANTS LTD,,Large,,5106261837,O365 tech specialist - Digital events -,NG16 1LA,"1,170.82",
"Housing, Communities & Local Government",PINS,09/07/2020,IT - Software Maintenance,Digital Services,SPECIALIST COMPUTER CENTRES LTD,,Large,,5106261870,"Server protection for  vitualization, WI",B11 2LE,842.40,
"Housing, Communities & Local Government",PINS,09/07/2020,Agency Staff,"Finance, Commercial & Business Support",REED SPECIALIST RECRUITMENT LTD,,Large,,5106261877,Finance Business Partner,SW20 0BA,"1,171.08",
"Housing, Communities & Local Government",PINS,09/07/2020,Agency Staff,Human Resources,REED SPECIALIST RECRUITMENT LTD,,Large,,5106261902,AO HR,SW20 0BA,539.64,
"Housing, Communities & Local Government",PINS,09/07/2020,Agency Staff,Knowledge & Horizon Scanning,REED SPECIALIST RECRUITMENT LTD,,Large,,5106261884,Agency Staff for Library ,SW20 0BA,527.10,
"Housing, Communities & Local Government",PINS,09/07/2020,Training,LKD TR People,KORN FERRY (UK) LTD,,Large,,5106261868,ET & GRd 6 dev & coaching ,SW1Y 6QB,"12,434.00",
"Housing, Communities & Local Government",PINS,09/07/2020,Agency Staff,Professional Leads,REED SPECIALIST RECRUITMENT LTD,,Large,,5106261872,PA Resource ,SW20 0BA,668.16,
"Housing, Communities & Local Government",PINS,09/07/2020,Specialist Technical Support,Research and Development,METHODS BUSINESS AND DIGITAL TECH,,Medium,,5106261842,ODT Programme Delivery Manager ,EC1N 8TS,"24,730.20",
"Housing, Communities & Local Government",PINS,09/07/2020,Agency Staff,Research and Development,REED SPECIALIST RECRUITMENT LTD,,Large,,5106261880,EO ODT Project Support,SW20 0BA,899.64,
"Housing, Communities & Local Government",PINS,09/07/2020,Agency Staff,Strategy & Corp Governance,REED SPECIALIST RECRUITMENT LTD,,Large,,5106261871,AO PA Resourse ,SW20 0BA,268.74,
"Housing, Communities & Local Government",PINS,09/07/2020,Advertising,Transport,TMP (UK) LIMITED,,Large,,5106261886,Statutory Advertising - NI,W1T 7RQ,"2,889.89",
"Housing, Communities & Local Government",PINS,09/07/2020,EXP – PURCHASE OF GOODS /SERVICES R & D,Vitual Events,METHODS BUSINESS AND DIGITAL TECH,,Medium,,5106261897,Delivery Manager ,EC1N 8TS,"12,650.00",
"Housing, Communities & Local Government",PINS,10/07/2020,Agency Staff,Communications,HAYS SPECIALIST RECRUITMENT LTD,,Large,,5106261957,Change Port Comms Lead ,NW1 2AF,"2,088.00",
"Housing, Communities & Local Government",PINS,10/07/2020,Specialist Technical Support,Data and Performance,HAYS SPECIALIST RECRUITMENT LTD,,Large,,5106261922,GDPR Trainer ,NW1 2AF,"2,832.00",
"Housing, Communities & Local Government",PINS,10/07/2020,Specialist Technical Support,Data Governance,HAYS SPECIALIST RECRUITMENT LTD,,Large,,5106261921,DPLO ,NW1 2AF,"3,580.50",
"Housing, Communities & Local Government",PINS,10/07/2020,Specialist Technical Support,Digital Services,HAYS SPECIALIST RECRUITMENT LTD,,Large,,5106261913,PHP Developer,NW1 2AF,"3,121.86",
"Housing, Communities & Local Government",PINS,10/07/2020,Specialist Technical Support,Digital Services,SOLOS CONSULTANTS LTD,,Large,,5106261935,Lead developer,NG16 1LA,"3,269.58",
"Housing, Communities & Local Government",PINS,10/07/2020,Courier Services,"Finance, Commercial & Business Support",CITY SPRINT,,Large,,5106261958,Courier services ,RH1 1SH,257.18,
"Housing, Communities & Local Government",PINS,10/07/2020,Agency Staff,"Finance, Commercial & Business Support",REED SPECIALIST RECRUITMENT LTD,,Large,,5106261875,AA Storekeeper,SW20 0BA,437.90,
"Housing, Communities & Local Government",PINS,10/07/2020,Agency Staff,"Finance, Commercial & Business Support",VENN GROUP,,Large,,5106261923,Finance Resource,SE1 2QP,"1,526.64",
"Housing, Communities & Local Government",PINS,10/07/2020,Agency Staff,Human Resources,HAYS SPECIALIST RECRUITMENT LTD,,Large,,5106261919,Admin OD/HR Support ,NW1 2AF,"1,196.34",
"Housing, Communities & Local Government",PINS,10/07/2020,Training,Human Resources,HOWARD DAVIS CONSULTANCY LTD,,Micro,,5106261929,Exec Coaching ,GL20 7SL,350.00,
"Housing, Communities & Local Government",PINS,10/07/2020,Agency Staff,LKD Director of Volume Casework,REED SPECIALIST RECRUITMENT LTD,,Large,,5106261797,Validation Officer,SW20 0BA,614.40,
"Housing, Communities & Local Government",PINS,10/07/2020,Agency Staff,LKD Director of Volume Casework,REED SPECIALIST RECRUITMENT LTD,,Large,,5106261808,Validation Officer,SW20 0BA,614.40,
"Housing, Communities & Local Government",PINS,10/07/2020,Agency Staff,LKD Director of Volume Casework,REED SPECIALIST RECRUITMENT LTD,,Large,,5106261878,Validation Officer,SW20 0BA,491.52,
"Housing, Communities & Local Government",PINS,10/07/2020,Agency Staff,LKD Director of Volume Casework,REED SPECIALIST RECRUITMENT LTD,,Large,,5106261879,Validation Officer,SW20 0BA,491.52,
"Housing, Communities & Local Government",PINS,10/07/2020,Advertising,LKD ROW,TMP (UK) LIMITED,,Large,,5106261940,Statutory Advertising - ROW,W1T 7RQ,844.32,
"Housing, Communities & Local Government",PINS,10/07/2020,Software Licences,ODT Resourcing,GOPRO CONSULTING LTD,,Small,,5106261961,V4 - Hosting Yr1,WC1N 2EB,"3,188.00",
"Housing, Communities & Local Government",PINS,10/07/2020,EXP – PURCHASE OF GOODS /SERVICES R & D,ODT Resourcing,HAYS SPECIALIST RECRUITMENT LTD,,Large,,5106261916,ODT Test Analyst,NW1 2AF,"1,457.10",
"Housing, Communities & Local Government",PINS,10/07/2020,EXP – PURCHASE OF GOODS /SERVICES R & D,Research and Development,GOPRO CONSULTING LTD,,Small,,5106261961,V10 - Beta Sprints,WC1N 2EB,"53,690.45",
"Housing, Communities & Local Government",PINS,10/07/2020,EXP – PURCHASE OF GOODS /SERVICES R & D,Research and Development,HAYS SPECIALIST RECRUITMENT LTD,,Large,,5106261911,ODT BA ,NW1 2AF,"2,086.80",
"Housing, Communities & Local Government",PINS,10/07/2020,EXP – PURCHASE OF GOODS /SERVICES R & D,Research and Development,HAYS SPECIALIST RECRUITMENT LTD,,Large,,5106261914,ODT ID,NW1 2AF,"2,851.55",
"Housing, Communities & Local Government",PINS,10/07/2020,EXP – PURCHASE OF GOODS /SERVICES R & D,Research and Development,HAYS SPECIALIST RECRUITMENT LTD,,Large,,5106261920,ODT Test Analyst,NW1 2AF,"2,095.70",
"Housing, Communities & Local Government",PINS,10/07/2020,EXP – PURCHASE OF GOODS /SERVICES R & D,Research and Development,HAYS SPECIALIST RECRUITMENT LTD,,Large,,5106261918,ODT Test Analyst,NW1 2AF,"2,260.75",
"Housing, Communities & Local Government",PINS,10/07/2020,Specialist Technical Support,Research and Development,HAYS SPECIALIST RECRUITMENT LTD,,Large,,5106261909,ODT User Researcher,NW1 2AF,"3,421.86",
"Housing, Communities & Local Government",PINS,10/07/2020,Specialist Technical Support,Research and Development,HAYS SPECIALIST RECRUITMENT LTD,,Large,,5106261915,ODT Content Designer,NW1 2AF,"1,491.05",
"Housing, Communities & Local Government",PINS,10/07/2020,EXP – PURCHASE OF GOODS /SERVICES R & D,Research and Development,METHODS BUSINESS AND DIGITAL TECH,,Medium,,5106261951,TM and A ODT ,EC1N 8TS,"12,650.00",
"Housing, Communities & Local Government",PINS,10/07/2020,EXP – PURCHASE OF GOODS /SERVICES R & D,Research and Development,METHODS BUSINESS AND DIGITAL TECH,,Medium,,5106261952,ODT Test Analyst,EC1N 8TS,"7,623.00",
"Housing, Communities & Local Government",PINS,10/07/2020,Agency Staff,Research and Development,REED SPECIALIST RECRUITMENT LTD,,Large,,5106261876,ODT Project Support,SW20 0BA,539.64,
"Housing, Communities & Local Government",PINS,10/07/2020,Advertising,Transport,TMP (UK) LIMITED,,Large,,5106261954,Statutory Advertising - NI,W1T 7RQ,859.20,
"Housing, Communities & Local Government",PINS,10/07/2020,Advertising,Transport,TMP (UK) LIMITED,,Large,,5106261955,Statutory Advertising - NI,W1T 7RQ,707.95,
"Housing, Communities & Local Government",PINS,10/07/2020,Specialist Technical Support,Vitual Events,HAYS SPECIALIST RECRUITMENT LTD,,Large,,5106261910,BA Digital Hearings ,NW1 2AF,"3,421.86",
"Housing, Communities & Local Government",PINS,10/07/2020,Specialist Technical Support,Vitual Events,METHODS BUSINESS AND DIGITAL TECH,,Medium,,5106261953,ODT Project Manager,EC1N 8TS,"14,520.00",
"Housing, Communities & Local Government",PINS,10/07/2020,Specialist Technical Support,Vitual Events,SOLOS CONSULTANTS LTD,,Large,,5106261936,O365 tech specialist - Digital events -,NG16 1LA,"2,927.04",
"Housing, Communities & Local Government",PINS,13/07/2020,Specialist Technical Support,Data and Performance,HAYS SPECIALIST RECRUITMENT LTD,,Large,,5106262000,MiPINS Resource,NW1 2AF,"3,421.86",
"Housing, Communities & Local Government",PINS,13/07/2020,Specialist Technical Support,"Finance, Commercial & Business Support",HAYS SPECIALIST RECRUITMENT LTD,,Large,,5106262002,Commercial Manager,NW1 2AF,488.66,
"Housing, Communities & Local Government",PINS,13/07/2020,Office machinery consumables,"Finance, Commercial & Business Support",X M A LIMITED,,Data Not Provided,,5106262017,IT Consumables 2020/2021,NG11 7EP,"1,362.00",
"Housing, Communities & Local Government",PINS,13/07/2020,Recruitment/Procurement Advertising,Human Resources,HAYMARKET MEDIA GROUP LIMITED,,Data Not Provided,,5106262020,People Mgmt Job site,TW1 3SP,954.00,
"Housing, Communities & Local Government",PINS,13/07/2020,Physical Storage,LKD Business Support,RESTORE PLC,,Large,,2100084538,offsite storage 19/20,RH1 5DY,"-1,055.97",
"Housing, Communities & Local Government",PINS,13/07/2020,Physical Storage,LKD Business Support,RESTORE PLC,,Large,,5106261925,offsite storage 19/20,RH1 5DY,"1,055.97",
"Housing, Communities & Local Government",PINS,13/07/2020,Agency Staff,LKD Inspector Development & Support Team,REED SPECIALIST RECRUITMENT LTD,,Large,,5106261873,Temp staff for IDST,SW20 0BA,505.34,
"Housing, Communities & Local Government",PINS,13/07/2020,EXP – PURCHASE OF GOODS /SERVICES R & D,Research and Development,SOLOS CONSULTANTS LTD,,Large,,5106261932,ODT BA ,NG16 1LA,"2,272.19",
"Housing, Communities & Local Government",PINS,13/07/2020,Specialist Technical Support,Vitual Events,HAYS SPECIALIST RECRUITMENT LTD,,Large,,5106261999,Solution Architect and Tech Support,NW1 2AF,"3,121.86",
"Housing, Communities & Local Government",PINS,14/07/2020,Agency Staff,"Finance, Commercial & Business Support",REED SPECIALIST RECRUITMENT LTD,,Large,,5106262025,AA Storekeeper,SW20 0BA,549.23,
"Housing, Communities & Local Government",PINS,14/07/2020,Agency Staff,"Finance, Commercial & Business Support",REED SPECIALIST RECRUITMENT LTD,,Large,,5106262032,Finance Business Partner,SW20 0BA,"1,522.40",
"Housing, Communities & Local Government",PINS,14/07/2020,Specialist Technical Support,Heathrow,SOLOS CONSULTANTS LTD,,Large,,5106261934,Excel Expert forcasting ,NG16 1LA,"1,361.28",
"Housing, Communities & Local Government",PINS,14/07/2020,Recruitment/Procurement Advertising,Human Resources,HAYMARKET MEDIA GROUP LIMITED,,Data Not Provided,,5106262023,CIPS Online,TW1 3SP,714.00,
"Housing, Communities & Local Government",PINS,14/07/2020,Legal Fees,Knowledge & Horizon Scanning,MHCLG,,Public Bodies,,5106262043,Legal Advisory Service 2019/2020,HP2 4XN,"135,484.00",
"Housing, Communities & Local Government",PINS,14/07/2020,Agency Staff,Knowledge & Horizon Scanning,REED SPECIALIST RECRUITMENT LTD,,Large,,5106262028,Agency Staff for Library ,SW20 0BA,494.41,
"Housing, Communities & Local Government",PINS,14/07/2020,Agency Staff,LKD Inspector Development & Support Team,REED SPECIALIST RECRUITMENT LTD,,Large,,5106262040,Temp staff for IDST,SW20 0BA,536.93,
"Housing, Communities & Local Government",PINS,14/07/2020,Specialist Technical Support,MIPINS,HAYS SPECIALIST RECRUITMENT LTD,,Large,,5106261917,BI Developer,NW1 2AF,"2,830.32",
"Housing, Communities & Local Government",PINS,14/07/2020,Agency Staff,Professional Leads,REED SPECIALIST RECRUITMENT LTD,,Large,,5106262037,PA Resource ,SW20 0BA,835.20,
"Housing, Communities & Local Government",PINS,14/07/2020,Specialist Technical Support,Research and Development,METHODS BUSINESS AND DIGITAL TECH,,Medium,,5106262053,ODT tester,EC1N 8TS,"10,895.28",
"Housing, Communities & Local Government",PINS,14/07/2020,Advertising,Transport,TMP (UK) LIMITED,,Large,,5106262046,Statutory Advertising - NI,W1T 7RQ,416.29,
"Housing, Communities & Local Government",PINS,15/07/2020,Agency Staff,Communications,HAYS SPECIALIST RECRUITMENT LTD,,Large,,5106262067,Change Port Comms Lead ,NW1 2AF,"2,088.00",
"Housing, Communities & Local Government",PINS,15/07/2020,Specialist Technical Support,Data Governance,HAYS SPECIALIST RECRUITMENT LTD,,Large,,5106261912,Senior Records Manager,NW1 2AF,"3,132.00",
"Housing, Communities & Local Government",PINS,15/07/2020,Specialist Technical Support,Data Governance,METHODS BUSINESS AND DIGITAL TECH,,Medium,,5106261719,DCS BA ,EC1N 8TS,"15,180.00",
"Housing, Communities & Local Government",PINS,15/07/2020,Physical Storage,"Finance, Commercial & Business Support",RESTORE PLC,,Large,,5106262056,Offsite Storage 2020/2021,RH1 5DY,"1,055.97",
"Housing, Communities & Local Government",PINS,15/07/2020,Agency Staff,LKD Director of Volume Casework,REED SPECIALIST RECRUITMENT LTD,,Large,,5106262026,Validation Officer,SW20 0BA,614.40,
"Housing, Communities & Local Government",PINS,15/07/2020,NSI Fees & Expenses,LKD NSI Expenses Planning,JS CONSERVATION MANAGEMENT &,,Small,,5106262066,NSI Expenses,LS27 0BD,581.65,
"Housing, Communities & Local Government",PINS,15/07/2020,Agency Staff,Research and Development,REED SPECIALIST RECRUITMENT LTD,,Large,,5106262024,EO ODT Project Support,SW20 0BA,411.26,
"Housing, Communities & Local Government",PINS,15/07/2020,Agency Staff,Research and Development,REED SPECIALIST RECRUITMENT LTD,,Large,,5106262030,EO ODT Project Support,SW20 0BA,"1,130.98",
"Housing, Communities & Local Government",PINS,15/07/2020,Agency Staff,Research and Development,REED SPECIALIST RECRUITMENT LTD,,Large,,5106262031,ODT Project Support,SW20 0BA,535.14,
"Housing, Communities & Local Government",PINS,15/07/2020,Translations,Wales Support,TROSOL CYFYNGEDIG,,Small,,5106261939,Pins Wales translation costs extension,CF14 5GH,"3,901.98",
"Housing, Communities & Local Government",PINS,16/07/2020,Agency Staff,Human Resources,REED SPECIALIST RECRUITMENT LTD,,Large,,5106262029,AO HR,SW20 0BA,674.56,
"Housing, Communities & Local Government",PINS,16/07/2020,Agency Staff,Strategy & Corp Governance,REED SPECIALIST RECRUITMENT LTD,,Large,,5106262027,AO PA Resourse ,SW20 0BA,501.65,
"Housing, Communities & Local Government",PINS,16/07/2020,Agency Staff,Strategy & Corp Governance,REED SPECIALIST RECRUITMENT LTD,,Large,,5106262088,AO PA Resourse ,SW20 0BA,671.86,
"Housing, Communities & Local Government",PINS,16/07/2020,Advertising,Transport,TMP (UK) LIMITED,,Large,,5106262081,Statutory Advertising - NI,W1T 7RQ,297.56,
"Housing, Communities & Local Government",PINS,20/07/2020,Specialist Technical Support,Data and Performance,HAYS SPECIALIST RECRUITMENT LTD,,Large,,5106262100,MiPINS Resource,NW1 2AF,"3,421.86",
"Housing, Communities & Local Government",PINS,20/07/2020,Specialist Technical Support,Data and Performance,HAYS SPECIALIST RECRUITMENT LTD,,Large,,5106262112,GDPR Trainer ,NW1 2AF,"2,832.00",
"Housing, Communities & Local Government",PINS,20/07/2020,Specialist Technical Support,Data Governance,HAYS SPECIALIST RECRUITMENT LTD,,Large,,5106262103,Senior Records Manager,NW1 2AF,"3,132.00",
"Housing, Communities & Local Government",PINS,20/07/2020,Specialist Technical Support,Data Governance,HAYS SPECIALIST RECRUITMENT LTD,,Large,,5106262111,DPLO ,NW1 2AF,"3,580.50",
"Housing, Communities & Local Government",PINS,20/07/2020,Specialist Technical Support,Digital Services,HAYS SPECIALIST RECRUITMENT LTD,,Large,,5106262101,PHP Developer,NW1 2AF,"3,121.86",
"Housing, Communities & Local Government",PINS,20/07/2020,Specialist Technical Support,Digital Services,SOLOS CONSULTANTS LTD,,Large,,5106262108,Lead developer,NG16 1LA,"3,269.58",
"Housing, Communities & Local Government",PINS,20/07/2020,Specialist Technical Support,Heathrow,SOLOS CONSULTANTS LTD,,Large,,5106262126,Excel Expert forcasting ,NG16 1LA,"1,361.28",
"Housing, Communities & Local Government",PINS,20/07/2020,Agency Staff,Human Resources,HAYS SPECIALIST RECRUITMENT LTD,,Large,,5106262122,Admin OD/HR Support ,NW1 2AF,"1,196.34",
"Housing, Communities & Local Government",PINS,20/07/2020,Steady State Service Provision,Human Resources,MINISTRY OF JUSTICE,,Data Not Provided,,5106262094,HR Casework Service Charge 19/20,NP10 8BA,"22,800.00",
"Housing, Communities & Local Government",PINS,20/07/2020,EXP – PURCHASE OF GOODS /SERVICES R & D,ODT Resourcing,HAYS SPECIALIST RECRUITMENT LTD,,Large,,5106262098,ODT Test Analyst,NW1 2AF,"1,457.10",
"Housing, Communities & Local Government",PINS,20/07/2020,EXP – PURCHASE OF GOODS /SERVICES R & D,Research and Development,HAYS SPECIALIST RECRUITMENT LTD,,Large,,5106262099,ODT Test Analyst,NW1 2AF,"2,095.70",
"Housing, Communities & Local Government",PINS,20/07/2020,EXP – PURCHASE OF GOODS /SERVICES R & D,Research and Development,HAYS SPECIALIST RECRUITMENT LTD,,Large,,5106262102,ODT BA ,NW1 2AF,"1,304.25",
"Housing, Communities & Local Government",PINS,20/07/2020,EXP – PURCHASE OF GOODS /SERVICES R & D,Research and Development,HAYS SPECIALIST RECRUITMENT LTD,,Large,,5106262106,ODT ID,NW1 2AF,"2,281.24",
"Housing, Communities & Local Government",PINS,20/07/2020,Specialist Technical Support,Research and Development,HAYS SPECIALIST RECRUITMENT LTD,,Large,,5106262109,ODT Content Designer,NW1 2AF,"1,491.05",
"Housing, Communities & Local Government",PINS,20/07/2020,Specialist Technical Support,Research and Development,HAYS SPECIALIST RECRUITMENT LTD,,Large,,5106262116,ODT User Researcher,NW1 2AF,"3,421.86",
"Housing, Communities & Local Government",PINS,20/07/2020,Specialist Technical Support,Vitual Events,HAYS SPECIALIST RECRUITMENT LTD,,Large,,5106262115,Solution Architect and Tech Support,NW1 2AF,"3,121.86",
"Housing, Communities & Local Government",PINS,20/07/2020,Specialist Technical Support,Vitual Events,HAYS SPECIALIST RECRUITMENT LTD,,Large,,5106262117,BA Digital Hearings ,NW1 2AF,"3,421.86",
"Housing, Communities & Local Government",PINS,21/07/2020,Agency Staff,Human Resources,REED SPECIALIST RECRUITMENT LTD,,Large,,5106262164,AO HR,SW20 0BA,674.56,
"Housing, Communities & Local Government",PINS,21/07/2020,EXP – PURCHASE OF GOODS /SERVICES R & D,Research and Development,HAYS SPECIALIST RECRUITMENT LTD,,Large,,5106262107,ODT Test Analyst,NW1 2AF,"2,260.75",
"Housing, Communities & Local Government",PINS,21/07/2020,Agency Staff,Research and Development,REED SPECIALIST RECRUITMENT LTD,,Large,,5106262155,EO ODT Project Support,SW20 0BA,321.30,
"Housing, Communities & Local Government",PINS,21/07/2020,Agency Staff,Research and Development,REED SPECIALIST RECRUITMENT LTD,,Large,,5106262156,ODT Project Support,SW20 0BA,539.64,
"Housing, Communities & Local Government",PINS,21/07/2020,EXP – PURCHASE OF GOODS /SERVICES R & D,Research and Development,SOLOS CONSULTANTS LTD,,Large,,5106262114,ODT BA ,NG16 1LA,"2,524.65",
"Housing, Communities & Local Government",PINS,21/07/2020,Specialist Technical Support,Research and Development,SOLOS CONSULTANTS LTD,,Large,,5106262105,Interaction Designer,NG16 1LA,"3,299.58",
"Housing, Communities & Local Government",PINS,21/07/2020,Specialist Technical Support,Vitual Events,SOLOS CONSULTANTS LTD,,Large,,5106262110,O365 tech specialist - Digital events -,NG16 1LA,"2,927.04",
"Housing, Communities & Local Government",PINS,22/07/2020,Agency Staff,Communications,HAYS SPECIALIST RECRUITMENT LTD,,Large,,5106262207,Change Port Comms Lead ,NW1 2AF,"2,088.00",
"Housing, Communities & Local Government",PINS,22/07/2020,Office machinery consumables,"Finance, Commercial & Business Support",X M A LIMITED,,Data Not Provided,,5106262216,IT Consumables 2020/2021,NG11 7EP,264.48,
"Housing, Communities & Local Government",PINS,22/07/2020,Office machinery consumables,"Finance, Commercial & Business Support",X M A LIMITED,,Data Not Provided,,5106262217,IT Consumables 2020/2021,NG11 7EP,"1,898.88",
"Housing, Communities & Local Government",PINS,22/07/2020,Agency Staff,Knowledge & Horizon Scanning,REED SPECIALIST RECRUITMENT LTD,,Large,,5106262165,Agency Staff for Library ,SW20 0BA,604.73,
"Housing, Communities & Local Government",PINS,22/07/2020,Agency Staff,Resourcing & Process,REED SPECIALIST RECRUITMENT LTD,,Large,,5106262161,Temp Staff,SW20 0BA,694.85,
"Housing, Communities & Local Government",PINS,23/07/2020,Specialist Technical Support,MIPINS,HAYS SPECIALIST RECRUITMENT LTD,,Large,,5106262104,BI Developer,NW1 2AF,"2,264.26",
"Housing, Communities & Local Government",PINS,23/07/2020,Specialist Technical Support,Welsh Separation,METHODS BUSINESS AND DIGITAL TECH,,Medium,,5106262233,Welsh Scoping Lead,EC1N 8TS,"15,840.00",
"Housing, Communities & Local Government",PINS,24/07/2020,Specialist Technical Support,Data and Performance,HAYS SPECIALIST RECRUITMENT LTD,,Large,,5106262262,MiPINS Resource,NW1 2AF,"3,421.86",
"Housing, Communities & Local Government",PINS,24/07/2020,Specialist Technical Support,Digital Services,HAYS SPECIALIST RECRUITMENT LTD,,Large,,5106262269,PHP Developer,NW1 2AF,"3,121.86",
"Housing, Communities & Local Government",PINS,24/07/2020,Courier Services,Estates,ROYAL MAIL,,Large,,5106262274,Postal services VAT 19/20,S49 1HQ,463.07,
"Housing, Communities & Local Government",PINS,24/07/2020,Agency Staff,Human Resources,HAYS SPECIALIST RECRUITMENT LTD,,Large,,5106262259,Admin OD/HR Support ,NW1 2AF,"1,196.34",
"Housing, Communities & Local Government",PINS,24/07/2020,EXP – PURCHASE OF GOODS /SERVICES R & D,ODT Resourcing,HAYS SPECIALIST RECRUITMENT LTD,,Large,,5106262256,ODT Test Analyst,NW1 2AF,"1,457.10",
"Housing, Communities & Local Government",PINS,24/07/2020,EXP – PURCHASE OF GOODS /SERVICES R & D,Research and Development,HAYS SPECIALIST RECRUITMENT LTD,,Large,,5106262254,ODT Test Analyst,NW1 2AF,"2,095.70",
"Housing, Communities & Local Government",PINS,24/07/2020,EXP – PURCHASE OF GOODS /SERVICES R & D,Research and Development,HAYS SPECIALIST RECRUITMENT LTD,,Large,,5106262266,ODT BA ,NW1 2AF,"1,565.10",
"Housing, Communities & Local Government",PINS,24/07/2020,EXP – PURCHASE OF GOODS /SERVICES R & D,Research and Development,HAYS SPECIALIST RECRUITMENT LTD,,Large,,5106262268,ODT ID,NW1 2AF,"2,851.55",
"Housing, Communities & Local Government",PINS,24/07/2020,EXP – PURCHASE OF GOODS /SERVICES R & D,Research and Development,HAYS SPECIALIST RECRUITMENT LTD,,Large,,5106262265,ODT Test Analyst,NW1 2AF,"2,260.75",
"Housing, Communities & Local Government",PINS,24/07/2020,Specialist Technical Support,Research and Development,HAYS SPECIALIST RECRUITMENT LTD,,Large,,5106262255,ODT User Researcher,NW1 2AF,"2,737.49",
"Housing, Communities & Local Government",PINS,24/07/2020,Specialist Technical Support,Vitual Events,HAYS SPECIALIST RECRUITMENT LTD,,Large,,5106262261,BA Digital Hearings ,NW1 2AF,"3,421.86",
"Housing, Communities & Local Government",PINS,24/07/2020,Specialist Technical Support,Vitual Events,HAYS SPECIALIST RECRUITMENT LTD,,Large,,5106262264,Solution Architect and Tech Support,NW1 2AF,"3,121.86",
"Housing, Communities & Local Government",PINS,27/07/2020,Specialist Technical Support,Data and Performance,HAYS SPECIALIST RECRUITMENT LTD,,Large,,5106262310,GDPR Trainer,NW1 2AF,"2,832.00",
"Housing, Communities & Local Government",PINS,27/07/2020,Agency Staff,"Finance, Commercial & Business Support",REED SPECIALIST RECRUITMENT LTD,,Large,,5106262159,Finance Business Partner,SW20 0BA,"1,132.04",
"Housing, Communities & Local Government",PINS,27/07/2020,Agency Staff,LKD Director of Volume Casework,REED SPECIALIST RECRUITMENT LTD,,Large,,5106262153,Validation Officer,SW20 0BA,614.40,
"Housing, Communities & Local Government",PINS,27/07/2020,Specialist Technical Support,MIPINS,HAYS SPECIALIST RECRUITMENT LTD,,Large,,5106262260,BI Developer,NW1 2AF,"2,830.32",
"Housing, Communities & Local Government",PINS,27/07/2020,Agency Staff,Strategy & Corp Governance,REED SPECIALIST RECRUITMENT LTD,,Large,,5106262154,AO PA Resourse ,SW20 0BA,671.86,
"Housing, Communities & Local Government",PINS,27/07/2020,Specialist Technical Support,Vitual Events,SOLOS CONSULTANTS LTD,,Large,,5106262248,O365 tech specialist - Digital events -,NG16 1LA,"2,927.04",
"Housing, Communities & Local Government",PINS,28/07/2020,Agency Staff,Knowledge & Horizon Scanning,REED SPECIALIST RECRUITMENT LTD,,Large,,5106262355,Agency Staff for Library ,SW20 0BA,604.73,
"Housing, Communities & Local Government",PINS,28/07/2020,Agency Staff,Professional Leads,REED SPECIALIST RECRUITMENT LTD,,Large,,5106262160,PA Resource ,SW20 0BA,835.20,
"Housing, Communities & Local Government",PINS,28/07/2020,Agency Staff,Professional Leads,REED SPECIALIST RECRUITMENT LTD,,Large,,5106262354,PA Resource ,SW20 0BA,501.12,
"Housing, Communities & Local Government",PINS,28/07/2020,EXP – PURCHASE OF GOODS /SERVICES R & D,Research and Development,METHODS BUSINESS AND DIGITAL TECH,,Medium,,5106262371,ODT Project Manager,EC1N 8TS,"10,522.20",
"Housing, Communities & Local Government",PINS,28/07/2020,Agency Staff,Research and Development,REED SPECIALIST RECRUITMENT LTD,,Large,,5106262343,EO ODT Project Support,SW20 0BA,886.79,
"Housing, Communities & Local Government",PINS,28/07/2020,Agency Staff,Research and Development,REED SPECIALIST RECRUITMENT LTD,,Large,,5106262356,ODT Project Support,SW20 0BA,593.60,
"Housing, Communities & Local Government",PINS,28/07/2020,Agency Staff,Resourcing & Process,REED SPECIALIST RECRUITMENT LTD,,Large,,5106262348,Temp Staff,SW20 0BA,702.74,
"Housing, Communities & Local Government",PINS,28/07/2020,Advertising,Transport,TMP (UK) LIMITED,,Large,,5106262366,Statutory Advertising - NI,W1T 7RQ,524.10,
"Housing, Communities & Local Government",PINS,29/07/2020,Training,Digital Services,CABINET OFFICE,,Public Bodies,,5106262210,GDS Working Level for Product Managers,FY5 3TA,540.00,
"Housing, Communities & Local Government",PINS,29/07/2020,Specialist Technical Support,Digital Services,SOLOS CONSULTANTS LTD,,Large,,5106262249,Lead developer,NG16 1LA,"3,269.58",
"Housing, Communities & Local Government",PINS,29/07/2020,Office Supplies,"Finance, Commercial & Business Support",BANNER BUSINESS SUPPLIES LTD,,Large,,5106262390,Stationery 2020/2021,S9 1XU,535.57,
"Housing, Communities & Local Government",PINS,29/07/2020,Agency Staff,"Finance, Commercial & Business Support",REED SPECIALIST RECRUITMENT LTD,,Large,,5106262345,Finance Business Partner,SW20 0BA,"1,444.33",
"Housing, Communities & Local Government",PINS,29/07/2020,Agency Staff,"Finance, Commercial & Business Support",VENN GROUP,,Large,,5106262174,Finance Resource,SE1 2QP,"1,526.64",
"Housing, Communities & Local Government",PINS,29/07/2020,Agency Staff,"Finance, Commercial & Business Support",VENN GROUP,,Large,,5106262318,Finance Resource,SE1 2QP,"1,526.64",
"Housing, Communities & Local Government",PINS,29/07/2020,Office machinery consumables,"Finance, Commercial & Business Support",X M A LIMITED,,Data Not Provided,,5106262400,IT Consumables 2020/2021,NG11 7EP,782.88,
"Housing, Communities & Local Government",PINS,29/07/2020,Office machinery consumables,"Finance, Commercial & Business Support",X M A LIMITED,,Data Not Provided,,5106262401,IT Consumables 2020/2021,NG11 7EP,264.48,
"Housing, Communities & Local Government",PINS,29/07/2020,Advertising,Transport,TMP (UK) LIMITED,,Large,,5106262399,Statutory Advertising - NI,W1T 7RQ,"2,713.56",
"Housing, Communities & Local Government",PINS,30/07/2020,Payroll Services,Human Resources,CGI IT UK LIMITED,,Large,,5106262422,Payroll service 2020/21,CF31 9AP,"4,178.34",
"Housing, Communities & Local Government",PINS,30/07/2020,Agency Staff,LKD Director of Volume Casework,REED SPECIALIST RECRUITMENT LTD,,Large,,2100085147,Validation Officer,SW20 0BA,-384.00,
"Housing, Communities & Local Government",PINS,30/07/2020,Agency Staff,LKD Director of Volume Casework,REED SPECIALIST RECRUITMENT LTD,,Large,,2100085148,Validation Officer,SW20 0BA,-614.40,
"Housing, Communities & Local Government",PINS,30/07/2020,Agency Staff,LKD Director of Volume Casework,REED SPECIALIST RECRUITMENT LTD,,Large,,5106262349,Validation Officer,SW20 0BA,614.40,
"Housing, Communities & Local Government",PINS,30/07/2020,Agency Staff,LKD Director of Volume Casework,REED SPECIALIST RECRUITMENT LTD,,Large,,5106262357,Validation Officer,SW20 0BA,384.00,
"Housing, Communities & Local Government",PINS,30/07/2020,Agency Staff,Strategy & Corp Governance,REED SPECIALIST RECRUITMENT LTD,,Large,,5106262346,AO PA Resourse ,SW20 0BA,676.33,
"Housing, Communities & Local Government",PINS,30/07/2020,Advertising,Wales Support,TMP (UK) LIMITED,,Large,,5106262429,Statutory Advertising - Wales,W1T 7RQ,"1,738.42",
"Housing, Communities & Local Government",PINS,31/07/2020,Specialist Technical Support,Data and Performance,HAYS SPECIALIST RECRUITMENT LTD,,Large,,5106262468,GDPR Trainer,NW1 2AF,"2,832.00",
"Housing, Communities & Local Government",PINS,31/07/2020,Specialist Technical Support,Data Governance,HAYS SPECIALIST RECRUITMENT LTD,,Large,,5106262258,DPLO ,NW1 2AF,"3,580.50",
"Housing, Communities & Local Government",PINS,31/07/2020,Specialist Technical Support,Data Governance,HAYS SPECIALIST RECRUITMENT LTD,,Large,,5106262267,Senior Records Manager,NW1 2AF,"3,132.00",
"Housing, Communities & Local Government",PINS,31/07/2020,Specialist Technical Support,Data Governance,HAYS SPECIALIST RECRUITMENT LTD,,Large,,5106262464,DPLO ,NW1 2AF,"3,580.50",
"Housing, Communities & Local Government",PINS,31/07/2020,Specialist Technical Support,Data Governance,HAYS SPECIALIST RECRUITMENT LTD,,Large,,5106262466,Senior Records Manager,NW1 2AF,"3,132.00",
"Housing, Communities & Local Government",PINS,31/07/2020,Specialist Technical Support,Digital Services,HAYS SPECIALIST RECRUITMENT LTD,,Large,,5106262457,PHP Developer,NW1 2AF,"3,121.86",
"Housing, Communities & Local Government",PINS,31/07/2020,Software Licences,Digital Services,INSIGHT DIRECT (UK) LTD,,Large,,5106262173,12 month licence subscription,UB8 1PH,672.14,
"Housing, Communities & Local Government",PINS,31/07/2020,Specialist Technical Support,Digital Services,SOLOS CONSULTANTS LTD,,Large,,5106262460,Lead developer,NG16 1LA,"3,269.58",
"Housing, Communities & Local Government",PINS,31/07/2020,Vehicle hire,"Finance, Commercial & Business Support",ENTERPRISE RENT-A-CAR,,Large,,5106262471,Repair damage to hire car,TW20 9FB,529.91,
"Housing, Communities & Local Government",PINS,31/07/2020,Vehicle hire,"Finance, Commercial & Business Support",ENTERPRISE RENT-A-CAR,,Large,,5106262472,Repair damage to hire car,TW20 9FB,343.64,
"Housing, Communities & Local Government",PINS,31/07/2020,Legal Fees,Knowledge & Horizon Scanning,GOVERNMENT LEGAL DEPT,,Public Bodies,,5106262455,Disbursements,WC2B 4TS,"24,938.10",
"Housing, Communities & Local Government",PINS,31/07/2020,Legal Fees,Knowledge & Horizon Scanning,GOVERNMENT LEGAL DEPT,,Public Bodies,,5106262455,Fees & Charges,WC2B 4TS,"2,933.55",
"Housing, Communities & Local Government",PINS,31/07/2020,Legal Fees,Knowledge & Horizon Scanning,GOVERNMENT LEGAL DEPT,,Public Bodies,,5106262463,Disbursements,WC2B 4TS,"30,736.90",
"Housing, Communities & Local Government",PINS,31/07/2020,Legal Fees,Knowledge & Horizon Scanning,GOVERNMENT LEGAL DEPT,,Public Bodies,,5106262463,Fees & Charges,WC2B 4TS,"69,363.30",
"Housing, Communities & Local Government",PINS,31/07/2020,EXP – PURCHASE OF GOODS /SERVICES R & D,ODT Resourcing,HAYS SPECIALIST RECRUITMENT LTD,,Large,,5106262469,ODT Test Analyst,NW1 2AF,"1,165.68",
"Housing, Communities & Local Government",PINS,31/07/2020,EXP – PURCHASE OF GOODS /SERVICES R & D,Research and Development,HAYS SPECIALIST RECRUITMENT LTD,,Large,,5106262456,ODT Test Analyst,NW1 2AF,"2,095.70",
"Housing, Communities & Local Government",PINS,31/07/2020,EXP – PURCHASE OF GOODS /SERVICES R & D,Research and Development,HAYS SPECIALIST RECRUITMENT LTD,,Large,,5106262467,ODT BA ,NW1 2AF,"1,565.10",
"Housing, Communities & Local Government",PINS,31/07/2020,EXP – PURCHASE OF GOODS /SERVICES R & D,Research and Development,HAYS SPECIALIST RECRUITMENT LTD,,Large,,5106262461,ODT Test Analyst,NW1 2AF,"2,260.75",
"Housing, Communities & Local Government",PINS,31/07/2020,Specialist Technical Support,Research and Development,HAYS SPECIALIST RECRUITMENT LTD,,Large,,5106262465,ODT Content Designer,NW1 2AF,"1,491.05",
"Housing, Communities & Local Government",PINS,31/07/2020,Specialist Technical Support,Vitual Events,HAYS SPECIALIST RECRUITMENT LTD,,Large,,5106262453,BA Digital Hearings ,NW1 2AF,"3,421.86",
"Housing, Communities & Local Government",PINS,31/07/2020,Specialist Technical Support,Vitual Events,HAYS SPECIALIST RECRUITMENT LTD,,Large,,5106262480,Solution Architect and Tech Support,NW1 2AF,"3,121.86",
